bitfinex/quotes_BTCUSD_20251016
["timestamp","ask_amount","ask_price","bid_price","bid_amount"]
[1760598501158,4.03270518,111640.0,111630.0,0.00103354]
[1760598504528,3.65063449,111640.0,111630.0,0.00103354]
[1760598505436,4.03270518,111640.0,111630.0,0.00103354]
[1760598510808,4.03271483,111640.0,111630.0,0.00103354]
[1760598511868,4.032715,111640.0,111630.0,0.00103354]
[1760598512508,4.01590283,111640.0,111630.0,0.00103354]
[1760598512755,4.03271481,111640.0,111630.0,0.00103354]
[1760598515512,4.0808052,111640.0,111630.0,0.00103354]
[1760598517458,4.08095966,111640.0,111630.0,0.00103354]
[1760598517867,4.06889709,111640.0,111630.0,0.00103354]
[1760598522467,4.06889774,111640.0,111630.0,0.00103354]
[1760598530150,4.06814156,111640.0,111630.0,0.00103354]
[1760598530351,4.06814172,111640.0,111630.0,0.00103354]
[1760598538186,4.06814359,111640.0,111630.0,0.00103354]
[1760598541406,3.68614118,111640.0,111630.0,0.00103354]
[1760598541622,3.4676767,111640.0,111630.0,0.00103354]
[1760598542043,3.64682395,111640.0,111630.0,0.00103354]
[1760598542882,3.22853684,111640.0,111630.0,0.00103354]
[1760598544446,3.61064167,111640.0,111630.0,0.00103354]
[1760598558312,3.61064205,111640.0,111630.0,0.00103354]
[1760598564739,3.61424205,111640.0,111630.0,0.00103354]
[1760598568193,2.31406877,111640.0,111630.0,0.29343684]
[1760598568504,0.4763876,111640.0,111630.0,0.32037169]
[1760598568712,0.27212553,111640.0,111630.0,0.32037169]
[1760598568915,0.38210483,111640.0,111630.0,0.20713169]
[1760598569140,0.38210483,111640.0,111630.0,0.32037169]
[1760598570232,0.56125208,111640.0,111630.0,0.32037169]
[1760598570449,0.56125208,111640.0,111630.0,0.20713169]
[1760598570649,0.56200966,111640.0,111630.0,0.20713169]
[1760598570851,0.56200966,111640.0,111630.0,0.32037169]
[1760598571061,0.56200966,111640.0,111630.0,0.32033169]
[1760598571312,0.38286241,111640.0,111630.0,0.32033169]
[1760598571933,0.38210483,111640.0,111630.0,0.32033169]
[1760598572154,0.38210483,111640.0,111630.0,0.20713169]
[1760598572372,0.38210483,111640.0,111630.0,0.32033169]
[1760598572814,0.38210483,111640.0,111630.0,0.20713169]
[1760598573029,0.17989887,111650.0,111640.0,0.17914725]
[1760598573252,0.5920037,111650.0,111640.0,0.17914725]
[1760598573952,0.5920037,111650.0,111640.0,0.20608207]
[1760598574179,0.5920037,111650.0,111640.0,0.31928207]
[1760598574841,0.5920037,111650.0,111640.0,0.14013482]
[1760598575121,0.5920037,111650.0,111640.0,0.15804954]
[1760598575372,0.5920037,111650.0,111640.0,0.33719679]
[1760598575610,0.5920037,111650.0,111640.0,0.31928207]
[1760598575854,0.5920037,111650.0,111640.0,0.20608207]
[1760598576095,0.5920037,111650.0,111640.0,0.31928207]
[1760598576874,0.59199362,111650.0,111640.0,0.31928207]
[1760598577128,0.59199362,111650.0,111640.0,0.20608207]
[1760598577375,0.59199362,111650.0,111640.0,0.31928207]
[1760598580293,0.59199362,111650.0,111640.0,0.20608207]
[1760598580763,0.59199362,111650.0,111640.0,0.31928207]
[1760598582835,0.59199362,111650.0,111640.0,0.14013482]
[1760598583044,0.59199362,111650.0,111640.0,0.33719679]
[1760598583238,0.59199362,111650.0,111640.0,0.31928207]
[1760598583583,0.59199362,111650.0,111640.0,0.20608207]
[1760598583759,0.59199362,111650.0,111640.0,0.31928207]
[1760598583960,0.35282126,111650.0,111640.0,0.31928207]
[1760598584168,0.35282126,111650.0,111640.0,0.20608207]
[1760598584369,0.03,111650.0,111640.0,0.20608207]
[1760598584547,0.38210483,111660.0,111650.0,0.17911773]
[1760598584757,0.39210483,111660.0,111650.0,0.29231773]
[1760598585379,0.39210483,111660.0,111650.0,0.31924832]
[1760598586766,0.39210483,111660.0,111650.0,0.31920832]
[1760598588224,0.57122,111660.0,111650.0,0.31920832]
[1760598589193,0.57122,111660.0,111650.0,0.20604832]
[1760598589603,0.57122,111660.0,111650.0,0.31920832]
[1760598591041,0.57122,111660.0,111650.0,0.20604832]
[1760598591240,0.57122,111660.0,111650.0,0.31920832]
[1760598592403,0.57122,111660.0,111650.0,0.20604832]
[1760598592613,0.57122,111660.0,111650.0,0.31920832]
[1760598592811,0.39210483,111660.0,111650.0,0.31920832]
[1760598593510,0.39210483,111660.0,111650.0,0.20604832]
[1760598593715,0.39210483,111660.0,111650.0,0.31920832]
[1760598593982,0.01,111660.0,111650.0,0.31920832]
[1760598594619,0.56120947,111670.0,111660.0,0.17911517]
[1760598594833,0.11,111670.0,111660.0,0.17911517]
[1760598595265,0.11,111670.0,111660.0,0.29227517]
[1760598595481,0.11,111670.0,111660.0,0.31920204]
[1760598595697,0.11,111670.0,111660.0,0.20604204]
[1760598595903,0.11,111670.0,111660.0,0.31920204]
[1760598596328,0.67120396,111670.0,111660.0,0.31920204]
[1760598597956,0.67120396,111670.0,111660.0,0.20604204]
[1760598598169,0.67120396,111670.0,111660.0,0.31920204]
[1760598598802,0.67120396,111670.0,111660.0,0.20604204]
[1760598599424,0.67120396,111670.0,111660.0,0.31920204]
[1760598599632,0.67120396,111670.0,111660.0,0.20604204]
[1760598599845,0.67120396,111670.0,111660.0,0.31920204]
[1760598600051,0.49210483,111670.0,111660.0,0.31920204]
[1760598600241,0.11,111670.0,111660.0,0.31920204]
[1760598601535,0.11,111670.0,111660.0,0.20604204]
[1760598601747,0.11,111670.0,111660.0,0.31916204]
[1760598603468,0.49169775,111670.0,111660.0,0.31916204]
[1760598604078,0.67079688,111670.0,111660.0,0.31916204]
[1760598606150,0.49169775,111670.0,111660.0,0.31916204]
[1760598608001,0.26295952,111670.0,111660.0,0.31916204]
[1760598608207,0.28295952,111670.0,111660.0,0.31916204]
[1760598608417,0.26295952,111670.0,111660.0,0.31916204]
[1760598608791,0.44205865,111670.0,111660.0,0.31916204]
[1760598610862,0.26295952,111670.0,111660.0,0.20604204]
[1760598611097,0.26295952,111670.0,111660.0,0.31916204]
[1760598611788,0.51908514,111680.0,111660.0,0.31916204]
[1760598612021,0.38169775,111670.0,111660.0,0.31916204]
[1760598612239,0.38169775,111670.0,111660.0,0.29223517]
[1760598612462,0.38169775,111670.0,111660.0,0.17911517]
[1760598612769,0.56079688,111670.0,111660.0,0.20604204]
[1760598613214,0.56079688,111670.0,111660.0,0.31916204]
[1760598614986,0.38169775,111670.0,111660.0,0.31916204]
[1760598617233,0.51908514,111680.0,111660.0,0.31916204]
[1760598617434,1.04078289,111680.0,111670.0,0.01790991]
[1760598617827,0.65908514,111680.0,111670.0,0.01790991]
[1760598617998,0.65908514,111680.0,111670.0,0.04483678]
[1760598618174,0.65908514,111680.0,111670.0,0.15795678]
[1760598618397,0.66008514,111680.0,111670.0,0.15795678]
[1760598618595,1.42397597,111680.0,111670.0,0.15795678]
[1760598618799,1.42297597,111680.0,111670.0,0.15795678]
[1760598619038,1.08397597,111680.0,111670.0,0.15795678]
[1760598619246,1.08397597,111680.0,111670.0,0.14004687]
[1760598619447,1.08497597,111680.0,111670.0,0.14004687]
[1760598619894,1.08397597,111680.0,111670.0,0.15795678]
[1760598620387,1.08497597,111680.0,111670.0,0.15795678]
[1760598621100,1.08497597,111680.0,111670.0,0.15791678]
[1760598621738,1.08497597,111680.0,111670.0,0.04483678]
[1760598621961,0.17911075,111670.0,111650.0,0.18808542]
[1760598622135,0.17913121,111650.0,111640.0,0.52810461]
[1760598622340,0.56082896,111650.0,111630.0,0.52014711]
[1760598622557,0.38169775,111640.0,111630.0,0.52014711]
[1760598622766,0.560845,111640.0,111630.0,0.00098381]
[1760598622980,0.94254275,111640.0,111630.0,0.18014711]
[1760598623181,0.94254275,111640.0,111630.0,0.32016027]
[1760598623418,0.94254275,111640.0,111630.0,0.20708027]
[1760598623593,0.38169775,111640.0,111630.0,0.32016027]
[1760598623800,0.38169775,111640.0,111630.0,0.32021]
[1760598624018,0.38169775,111640.0,111630.0,0.32121]
[1760598624405,0.7633955,111640.0,111630.0,0.32121]
[1760598624605,0.38169775,111640.0,111630.0,0.20813]
[1760598624825,0.38169775,111640.0,111630.0,0.32121]
[1760598625227,0.38169775,111640.0,111630.0,0.20813]
[1760598625443,0.38169775,111640.0,111630.0,0.32121]
[1760598625649,0.38169775,111640.0,111630.0,0.32221]
[1760598625854,0.38169775,111640.0,111630.0,0.20913]
[1760598626052,0.38169775,111640.0,111630.0,0.32221]
[1760598626700,0.38169775,111640.0,111630.0,0.20913]
[1760598626955,0.38169775,111640.0,111630.0,0.32221]
[1760598627356,0.38169775,111640.0,111630.0,0.20913]
[1760598627826,0.38169775,111640.0,111630.0,0.32221]
[1760598628067,0.560845,111640.0,111630.0,0.32221]
[1760598628292,0.560845,111640.0,111630.0,0.20913]
[1760598628574,0.560845,111640.0,111630.0,0.29527684]
[1760598628779,0.94254275,111640.0,111630.0,0.29527684]
[1760598629037,0.560845,111640.0,111630.0,0.18219684]
[1760598629265,0.560845,111640.0,111630.0,0.29527684]
[1760598629509,0.94254275,111640.0,111630.0,0.18219684]
[1760598629993,1.07254275,111640.0,111630.0,0.29527684]
[1760598630232,0.690845,111640.0,111630.0,0.11611354]
[1760598630706,0.690845,111640.0,111630.0,0.29527684]
[1760598632276,1.07254275,111640.0,111630.0,0.00303354]
[1760598633334,1.07254275,111640.0,111630.0,0.00203354]
[1760598634147,1.07254275,111640.0,111630.0,0.00103354]
[1760598634836,1.41254275,111640.0,111630.0,0.00103354]
[1760598636377,1.42507496,111640.0,111630.0,0.00103354]
[1760598636588,3.64486096,111640.0,111630.0,0.00103354]
[1760598642943,3.63232875,111640.0,111630.0,0.00103354]
[1760598648884,2.86893325,111640.0,111630.0,0.00103354]
[1760598649085,3.63232875,111640.0,111630.0,0.00103354]
[1760598649526,2.86893325,111640.0,111630.0,0.00103354]
[1760598649730,3.63232875,111640.0,111630.0,0.00103354]
[1760598651071,2.86893325,111640.0,111630.0,0.00103354]
[1760598651279,3.250631,111640.0,111630.0,0.00103354]
[1760598651481,3.63232875,111640.0,111630.0,0.00103354]
[1760598654674,2.86893325,111640.0,111630.0,0.00103354]
[1760598654879,3.63232875,111640.0,111630.0,0.00103354]
[1760598665588,3.25099143,111640.0,111630.0,0.00103354]
[1760598665972,3.26352574,111640.0,111630.0,0.00103354]
[1760598673686,2.88146756,111640.0,111630.0,0.00103354]
[1760598673893,3.26352574,111640.0,111630.0,0.00103354]
[1760598677717,3.27248551,111640.0,111630.0,0.00103354]
[1760598677943,2.89042733,111640.0,111630.0,0.00103354]
[1760598678154,3.27248551,111640.0,111630.0,0.00103354]
[1760598681396,3.69072597,111640.0,111630.0,0.00103354]
[1760598681610,3.78041609,111640.0,111630.0,0.00103354]
[1760598681823,3.79724015,111640.0,111630.0,0.00103354]
[1760598683792,3.79824015,111640.0,111630.0,0.00103354]
[1760598684255,3.59177037,111640.0,111630.0,1e-08]
[1760598684468,3.77091762,111640.0,111630.0,1e-08]
[1760598685124,3.77191762,111640.0,111630.0,1e-08]
[1760598687323,3.50306566,111630.0,111620.0,0.005]
[1760598687533,3.73957984,111630.0,111620.0,0.00504974]
[1760598688439,3.76652734,111630.0,111620.0,0.00504974]
[1760598690875,3.80270962,111630.0,111620.0,0.00504974]
[1760598693010,3.80270962,111630.0,111620.0,0.00563363]
[1760598693730,3.8923917,111630.0,111620.0,1e-08]
[1760598693949,3.90492831,111630.0,111620.0,1e-08]
[1760598695004,3.90592831,111630.0,111620.0,1e-08]
[1760598695440,3.86454837,111630.0,111620.0,1e-08]
[1760598695666,3.88486922,111630.0,111620.0,1e-08]
[1760598697445,3.6624948,111630.0,111620.0,1e-08]
[1760598697655,3.8255485,111630.0,111620.0,1e-08]
[1760598701384,3.81301189,111630.0,111620.0,1e-08]
[1760598703537,3.82554897,111630.0,111620.0,1e-08]
[1760598707584,3.79335643,111630.0,111620.0,1e-08]
[1760598709337,3.85775929,111630.0,111620.0,1e-08]
[1760598709539,3.85772197,111630.0,111620.0,1e-08]
[1760598710344,0.55537769,111610.0,111600.0,0.0717521]
[1760598710539,3.29557093,111610.0,111600.0,0.07947702]
[1760598710742,3.29557093,111610.0,111600.0,0.00772492]
[1760598710946,3.29557093,111610.0,111600.0,4.971e-05]
[1760598711191,3.32251933,111610.0,111600.0,4.971e-05]
[1760598711657,3.82292553,111610.0,111600.0,4.971e-05]
[1760598712093,3.77456332,111610.0,111600.0,4.971e-05]
[1760598712519,3.83896618,111610.0,111600.0,4.971e-05]
[1760598712951,3.92864826,111610.0,111600.0,4.971e-05]
[1760598713165,3.83896618,111610.0,111600.0,4.971e-05]
[1760598713372,3.83996618,111610.0,111600.0,4.971e-05]
[1760598714438,3.84096618,111610.0,111600.0,4.971e-05]
[1760598715949,3.90893787,111610.0,111600.0,0.00121776]
[1760598718936,3.90894656,111610.0,111600.0,0.00121776]
[1760598720386,3.8964094,111610.0,111600.0,0.00121776]
[1760598722138,3.90894743,111610.0,111600.0,0.00121776]
[1760598725214,0.17921146,111600.0,111590.0,0.005]
[1760598725421,3.84346134,111600.0,111590.0,0.005]
[1760598725625,3.84346134,111600.0,111590.0,0.00558412]
[1760598725991,3.87041356,111600.0,111590.0,0.00558412]
[1760598727197,3.87041339,111600.0,111590.0,0.00558412]
[1760598727405,3.87104687,111600.0,111590.0,0.00558412]
[1760598728048,3.10629703,111600.0,111590.0,0.00558412]
[1760598728259,3.74517447,111600.0,111590.0,0.00558412]
[1760598728726,4.12757294,111600.0,111590.0,0.00558412]
[1760598728964,4.16375522,111600.0,111590.0,0.00558412]
[1760598729190,4.25344534,111600.0,111590.0,0.00558412]
[1760598735571,4.50285211,111600.0,111590.0,0.00558412]
[1760598738606,4.5028602,111600.0,111590.0,0.00558412]
[1760598741450,4.2534602,111600.0,111590.0,0.00558412]
[1760598746007,3.10633544,111600.0,111590.0,0.00558412]
[1760598746228,4.2366532,111600.0,111590.0,0.00558412]
[1760598746435,4.25347477,111600.0,111590.0,0.00558412]
[1760598747308,4.50287477,111600.0,111590.0,0.00558412]
[1760598747621,3.11476082,111600.0,111590.0,0.00558412]
[1760598747823,3.87951066,111600.0,111590.0,0.00558412]
[1760598748221,3.87109985,111600.0,111590.0,0.00558412]
[1760598749652,3.87951065,111600.0,111590.0,0.00558412]
[1760598750624,3.87951071,111600.0,111590.0,0.00558412]
[1760598751583,4.26188563,111600.0,111590.0,0.00558412]
[1760598754490,3.87951071,111600.0,111590.0,0.00558412]
[1760598754707,4.26188563,111600.0,111590.0,0.00558412]
[1760598756779,4.26188788,111600.0,111590.0,0.00558412]
[1760598761572,3.11476475,111600.0,111590.0,0.00558412]
[1760598761781,4.26188951,111600.0,111590.0,0.00558412]
[1760598762663,4.03619222,111600.0,111590.0,0.00558412]
[1760598762877,4.21540368,111600.0,111590.0,0.00558412]
[1760598765064,2.75870673,111600.0,111590.0,0.00558412]
[1760598765248,3.90583149,111600.0,111590.0,0.00558412]
[1760598765505,2.75870673,111600.0,111590.0,0.00558412]
[1760598765716,3.90583149,111600.0,111590.0,0.00558412]
[1760598767626,3.90583177,111600.0,111590.0,0.00558412]
[1760598769880,4.24583177,111600.0,111590.0,0.00558412]
[1760598770524,4.24583188,111600.0,111590.0,0.00558412]
[1760598772580,4.2618899,111600.0,111590.0,0.00558412]
[1760598774792,4.26189276,111600.0,111590.0,0.00558412]
[1760598774996,4.2135308,111600.0,111590.0,0.00558412]
[1760598775202,4.21353126,111600.0,111590.0,0.00558412]
[1760598779773,4.46293126,111600.0,111590.0,0.00558412]
[1760598781957,3.3158065,111600.0,111590.0,0.00558412]
[1760598782162,4.46293126,111600.0,111590.0,0.00558412]
[1760598782365,4.08055634,111600.0,111590.0,0.00558412]
[1760598782770,4.46293126,111600.0,111590.0,0.00558412]
[1760598785788,4.462932,111600.0,111590.0,0.00558412]
[1760598787377,4.08061874,111600.0,111590.0,0.00558412]
[1760598787825,4.08061878,111600.0,111590.0,0.00558412]
[1760598789109,4.1122545,111600.0,111590.0,0.00558412]
[1760598789308,4.12908162,111600.0,111590.0,0.00558412]
[1760598791036,3.36427012,111600.0,111590.0,0.00558412]
[1760598791211,4.12908162,111600.0,111590.0,0.00558412]
[1760598791479,4.12908145,111600.0,111590.0,0.00558412]
[1760598792039,3.7466757,111600.0,111590.0,0.00558412]
[1760598793432,4.12908145,111600.0,111590.0,0.00558412]
[1760598802060,3.7466757,111600.0,111590.0,0.00558412]
[1760598803558,3.36426995,111600.0,111590.0,0.00558412]
[1760598803775,3.7466757,111600.0,111590.0,0.00558412]
[1760598804223,3.69821252,111600.0,111590.0,0.00558412]
[1760598804926,4.08061827,111600.0,111590.0,0.00558412]
[1760598806244,3.15761762,111580.0,111570.0,0.05]
[1760598806458,3.3560924,111580.0,111570.0,0.05004974]
[1760598806660,3.45832559,111580.0,111570.0,0.05004974]
[1760598806869,3.90722125,111580.0,111570.0,1e-08]
[1760598807076,3.93056032,111580.0,111570.0,1e-08]
[1760598807288,3.94310339,111580.0,111570.0,1e-08]
[1760598807509,3.54003943,111570.0,111560.0,0.0054]
[1760598807702,3.84886753,111570.0,111560.0,0.0054]
[1760598807913,3.92844535,111570.0,111560.0,0.0054]
[1760598808322,3.94818361,111570.0,111560.0,0.0054]
[1760598808530,3.93563971,111570.0,111560.0,0.0054]
[1760598808723,3.55322666,111570.0,111560.0,0.0054]
[1760598809139,3.51974109,111570.0,111560.0,0.0054]
[1760598809560,3.42574329,111570.0,111560.0,0.0054]
[1760598809774,3.06851158,111570.0,111560.0,0.0054]
[1760598809992,3.07967211,111570.0,111560.0,0.0054]
[1760598810196,3.06284516,111570.0,111560.0,0.0054]
[1760598810409,3.40084516,111570.0,111560.0,0.0054]
[1760598812976,2.89256701,111570.0,111560.0,0.0054]
[1760598813391,2.86839297,111570.0,111560.0,0.0054]
[1760598816316,3.25079872,111570.0,111560.0,0.0054]
[1760598817037,3.27497276,111570.0,111560.0,0.0054]
[1760598817252,3.27497276,111570.0,111560.0,0.00715293]
[1760598818655,2.89256701,111570.0,111560.0,0.00715293]
[1760598827779,0.67278101,111570.0,111560.0,0.00715293]
[1760598829246,2.92481223,111570.0,111560.0,0.00715293]
[1760598829463,2.89256701,111570.0,111560.0,0.00715293]
[1760598829873,0.67278101,111570.0,111560.0,0.00715293]
[1760598833402,1.08743198,111570.0,111560.0,0.00715293]
[1760598834367,0.70502623,111570.0,111560.0,0.00715293]
[1760598838411,0.69767039,111570.0,111560.0,0.00715293]
[1760598839662,3.34823319,111570.0,111560.0,0.00715293]
[1760598843342,2.96582744,111570.0,111560.0,0.00715293]
[1760598843591,3.34823319,111570.0,111560.0,0.00715293]
[1760598847057,2.96582744,111570.0,111560.0,0.00715293]
[1760598849549,3.34828866,111570.0,111560.0,0.00715293]
[1760598849750,2.82255617,111570.0,111560.0,0.00715293]
[1760598849977,2.88255617,111570.0,111560.0,0.00715293]
[1760598850420,0.28030895,111570.0,111560.0,0.58681744]
[1760598850643,0.17925965,111570.0,111560.0,0.38961415]
[1760598850903,0.17925965,111570.0,111560.0,0.00715293]
[1760598851107,0.2203176,111570.0,111560.0,0.11999293]
[1760598851529,0.17925965,111570.0,111560.0,0.11999293]
[1760598851739,0.17925965,111570.0,111560.0,0.00715293]
[1760598851953,0.17925965,111570.0,111560.0,0.11999293]
[1760598852180,0.17925965,111570.0,111560.0,0.20435622]
[1760598852418,0.17925965,111570.0,111560.0,0.29926865]
[1760598853272,0.17925965,111570.0,111560.0,0.68172987]
[1760598854830,0.57572996,111580.0,111560.0,0.56888987]
[1760598855035,0.17925965,111570.0,111560.0,0.67997694]
[1760598855453,0.57572996,111580.0,111560.0,0.67997694]
[1760598855676,0.09105076,111580.0,111570.0,0.17925965]
[1760598855895,0.20345862,111590.0,111580.0,0.17924359]
[1760598856139,0.22027708,111590.0,111580.0,0.29208359]
[1760598856369,0.19604598,111590.0,111580.0,0.56170481]
[1760598856583,0.17922752,111590.0,111580.0,0.56170481]
[1760598857228,0.17922752,111590.0,111580.0,0.67454481]
[1760598857462,2.39901352,111590.0,111580.0,0.67454481]
[1760598857705,0.17922752,111590.0,111580.0,0.67454481]
[1760598857936,0.17922752,111590.0,111580.0,1.05700603]
[1760598858370,0.17922752,111590.0,111580.0,0.49530122]
[1760598859042,2.219786,111590.0,111580.0,0.49530122]
[1760598859250,0.17922752,111590.0,111580.0,0.38246122]
[1760598859466,0.17922752,111590.0,111580.0,0.49530122]
[1760598861649,0.17931622,111590.0,111580.0,0.49530122]
[1760598861856,0.17931622,111590.0,111580.0,0.67454481]
[1760598862077,8.87e-05,111590.0,111580.0,0.67454481]
[1760598862212,0.17931622,111590.0,111580.0,0.67454481]
[1760598862434,8.87e-05,111590.0,111580.0,1.05700603]
[1760598862637,8.87e-05,111590.0,111580.0,0.94416603]
[1760598862847,0.17931622,111590.0,111580.0,1.05696603]
[1760598863233,0.47181891,111600.0,111580.0,1.05696603]
[1760598863430,0.51181891,111600.0,111590.0,0.40038397]
[1760598863630,0.51181891,111600.0,111590.0,0.38246122]
[1760598863837,0.51181891,111600.0,111590.0,0.49526122]
[1760598864040,0.51181891,111600.0,111590.0,0.38246122]
[1760598864268,0.01933636,111600.0,111590.0,0.67448874]
[1760598864477,0.51920783,111610.0,111590.0,0.67448874]
[1760598864688,0.64854419,111610.0,111600.0,0.40038236]
[1760598864889,0.64854419,111610.0,111600.0,0.38246122]
[1760598865092,0.64854419,111610.0,111600.0,0.49526122]
[1760598865296,0.64854419,111610.0,111600.0,0.38246122]
[1760598865742,0.66466007,111610.0,111600.0,0.49526122]
[1760598867266,0.64854419,111610.0,111600.0,0.38246122]
[1760598867493,0.64854419,111610.0,111600.0,0.49526122]
[1760598867917,0.64854419,111610.0,111600.0,0.38246122]
[1760598868117,0.30854419,111610.0,111600.0,0.38246122]
[1760598868313,0.28920783,111610.0,111600.0,0.49526122]
[1760598868542,0.28920783,111610.0,111600.0,0.67447268]
[1760598868543,0.28919541,111610.0,111600.0,0.67447268]
[1760598868751,0.28919541,111610.0,111600.0,0.49526122]
[1760598869524,0.28919541,111610.0,111600.0,0.87772244]
[1760598869697,0.11,111610.0,111600.0,1.03382402]
[1760598869875,0.11,111610.0,111600.0,1.14662402]
[1760598870277,0.11,111610.0,111600.0,1.03382402]
[1760598870480,0.11,111610.0,111600.0,1.14662402]
[1760598870906,0.28919541,111610.0,111600.0,1.03382402]
[1760598871105,0.28919541,111610.0,111600.0,1.14662402]
[1760598871897,0.11,111610.0,111600.0,1.14662402]
[1760598872098,0.11,111610.0,111600.0,1.03382402]
[1760598872339,0.28919541,111610.0,111600.0,1.14662402]
[1760598872553,0.11,111610.0,111600.0,1.14662402]
[1760598874211,0.11,111610.0,111600.0,1.03382402]
[1760598874449,0.11,111610.0,111600.0,1.14662402]
[1760598874897,0.00212888,111620.0,111610.0,0.17919541]
[1760598875121,0.00212888,111620.0,111610.0,1.14656797]
[1760598875122,0.00221806,111620.0,111610.0,1.14656797]
[1760598876240,0.00221806,111620.0,111610.0,1.03380797]
[1760598876495,0.00221806,111620.0,111610.0,1.14656797]
[1760598876696,0.00221806,111620.0,111610.0,1.17350383]
[1760598876908,0.00221806,111620.0,111610.0,1.55596505]
[1760598877112,0.00221806,111620.0,111610.0,0.29582139]
[1760598877325,0.00221806,111620.0,111610.0,1.55596505]
[1760598877734,0.00221806,111620.0,111610.0,1.44320505]
[1760598877939,0.00221806,111620.0,111610.0,1.89596505]
[1760598878151,0.00221806,111620.0,111610.0,1.78320505]
[1760598878349,0.00221806,111620.0,111610.0,1.89596505]
[1760598878557,0.00221806,111620.0,111610.0,1.78320505]
[1760598878756,0.00221806,111620.0,111610.0,1.89796505]
[1760598878976,0.00221806,111620.0,111610.0,1.89696505]
[1760598879211,0.00221806,111620.0,111610.0,1.78420505]
[1760598879414,0.00221806,111620.0,111610.0,1.89896505]
[1760598880455,0.04356746,111650.0,111640.0,0.17914725]
[1760598880668,0.01933636,111650.0,111640.0,1.14651981]
[1760598880878,0.01933636,111650.0,111640.0,1.03375981]
[1760598881085,0.01933636,111650.0,111640.0,1.14651981]
[1760598882107,0.01933636,111650.0,111640.0,1.03375981]
[1760598882514,0.01933636,111650.0,111640.0,1.14651981]
[1760598882929,0.01933636,111650.0,111640.0,1.03375981]
[1760598883131,0.01933636,111650.0,111640.0,1.14651981]
[1760598883534,0.01933636,111650.0,111640.0,1.03375981]
[1760598883971,0.01933636,111650.0,111640.0,1.14647981]
[1760598884134,0.04356746,111650.0,111640.0,1.14647981]
[1760598884516,0.04356746,111650.0,111640.0,1.03375981]
[1760598885572,0.04356746,111650.0,111640.0,1.14647981]
[1760598885796,0.04356746,111650.0,111640.0,1.03375981]
[1760598885953,0.04531869,111650.0,111640.0,1.14647981]
[1760598886168,0.07756391,111650.0,111640.0,1.14647981]
[1760598886342,0.07756391,111650.0,111640.0,1.03375981]
[1760598886539,0.07756391,111650.0,111640.0,1.14647981]
[1760598886779,0.08520157,111660.0,111650.0,0.17913121]
[1760598886975,0.22201221,111660.0,111650.0,0.56159243]
[1760598887171,0.22201221,111660.0,111650.0,0.67431243]
[1760598887993,0.22201143,111660.0,111650.0,0.67431243]
[1760598888236,0.22201143,111660.0,111650.0,0.56159243]
[1760598888438,0.22201143,111660.0,111650.0,0.67431243]
[1760598888643,0.27872067,111660.0,111650.0,0.67431243]
[1760598889075,0.27872067,111660.0,111650.0,0.56159243]
[1760598889278,0.24669784,111660.0,111650.0,0.67431243]
[1760598889768,0.24669784,111660.0,111650.0,0.17913121]
[1760598889964,0.24669784,111660.0,111650.0,0.67431243]
[1760598890173,0.24669784,111660.0,111650.0,0.56159243]
[1760598890378,0.24669784,111660.0,111650.0,0.67431243]
[1760598892407,0.24669784,111660.0,111630.0,0.22693127]
[1760598892408,0.17913121,111650.0,111630.0,0.22693127]
[1760598892617,0.17913121,111650.0,111630.0,0.2]
[1760598892618,4.31391777,111640.0,111630.0,0.2]
[1760598892838,0.21534558,111630.0,111620.0,0.00212836]
[1760598893065,3.51070474,111630.0,111620.0,0.00212836]
[1760598893307,3.56030209,111630.0,111620.0,0.11484836]
[1760598893524,3.56030209,111630.0,111620.0,0.00212836]
[1760598893956,3.56030209,111630.0,111620.0,0.11484836]
[1760598894842,3.56130209,111630.0,111620.0,0.11484836]
[1760598895055,3.56230209,111630.0,111620.0,0.11484836]
[1760598895279,3.56230209,111630.0,111620.0,0.00212836]
[1760598895711,3.56230209,111630.0,111620.0,0.11484836]
[1760598895914,3.56230209,111630.0,111620.0,0.00212836]
[1760598896130,3.56230209,111630.0,111620.0,0.11484836]
[1760598896561,3.57410247,111630.0,111620.0,0.00212836]
[1760598896978,3.57410247,111630.0,111620.0,0.11484836]
[1760598897811,3.54962706,111630.0,111620.0,0.11484836]
[1760598898242,3.54962706,111630.0,111620.0,0.00212836]
[1760598898435,3.54962706,111630.0,111620.0,0.11484836]
[1760598898853,3.56887135,111630.0,111620.0,0.00212836]
[1760598899309,3.50474823,111630.0,111620.0,0.00212836]
[1760598899512,3.50474823,111630.0,111620.0,0.11484836]
[1760598899714,3.50474823,111630.0,111620.0,0.00212836]
[1760598899937,3.56887135,111630.0,111620.0,0.11484836]
[1760598900141,3.56887135,111630.0,111620.0,0.00212836]
[1760598900263,3.56887135,111630.0,111620.0,0.11484836]
[1760598900880,3.56887135,111630.0,111620.0,0.00212836]
[1760598901085,3.56887135,111630.0,111620.0,0.11484836]
[1760598901287,3.50477623,111630.0,111620.0,0.11484836]
[1760598901490,3.50477623,111630.0,111620.0,0.00212836]
[1760598901721,3.50477623,111630.0,111620.0,0.07952836]
[1760598901918,3.88723745,111630.0,111620.0,0.11484836]
[1760598902136,3.88723745,111630.0,111620.0,0.00212836]
[1760598902363,3.95136057,111630.0,111620.0,0.00212836]
[1760598902794,0.17921146,111600.0,111590.0,0.08967485]
[1760598903008,1.02817934,111600.0,111590.0,0.08967485]
[1760598903441,1.02817934,111600.0,111590.0,0.13064275]
[1760598903870,1.02817934,111600.0,111590.0,0.01801193]
[1760598904074,0.2632569,111600.0,111590.0,0.13073193]
[1760598904292,0.2632569,111600.0,111590.0,0.01801193]
[1760598904501,0.64571812,111600.0,111590.0,0.01801193]
[1760598904783,0.64571812,111600.0,111590.0,0.13073193]
[1760598904989,0.64571812,111600.0,111590.0,0.12838539]
[1760598905196,0.59762109,111600.0,111590.0,0.01566539]
[1760598905668,0.59762109,111600.0,111590.0,0.12838539]
[1760598905855,0.59762109,111600.0,111590.0,0.01566539]
[1760598906300,0.98008231,111600.0,111590.0,0.01566539]
[1760598906519,1.37817934,111600.0,111590.0,8.918e-05]
[1760598906710,4.01660884,111600.0,111590.0,8.918e-05]
[1760598907006,4.13085205,111600.0,111590.0,8.918e-05]
[1760598907444,4.1427382,111600.0,111590.0,8.918e-05]
[1760598907659,0.56172087,111570.0,111560.0,0.0771521]
[1760598907876,0.59766928,111570.0,111560.0,0.0772408]
[1760598908096,0.59766928,111570.0,111560.0,0.1182087]
[1760598908303,0.21520806,111570.0,111560.0,0.1182087]
[1760598908532,0.21518239,111570.0,111560.0,0.0054887]
[1760598908753,0.21518239,111570.0,111560.0,0.02341627]
[1760598908982,0.21518239,111570.0,111560.0,0.13613627]
[1760598910259,0.21518239,111570.0,111560.0,0.02341627]
[1760598910470,0.5809134,111570.0,111560.0,0.1182487]
[1760598910895,0.19850394,111570.0,111560.0,0.1182487]
[1760598911723,0.19850394,111570.0,111560.0,0.0054887]
[1760598911981,0.19850394,111570.0,111560.0,0.1182487]
[1760598913915,0.19850394,111570.0,111560.0,0.12175409]
[1760598914382,0.19850394,111570.0,111560.0,0.00899409]
[1760598914593,0.19850394,111570.0,111560.0,0.12175409]